bitfinex/quotes_ETHUSD_20250508
["timestamp","ask_amount","ask_price","bid_price","bid_amount"]
[1746721891631,4.88997924,2045.0,2044.6,5.69090733]
[1746721891936,4.88986049,2045.1,2044.7,4.89068857]
[1746721892237,10.6,2045.6,2045.1,0.7686]
[1746721892238,10.05,2045.6,2045.1,0.7686]
[1746721892409,4.88889831,2045.5,2045.1,5.70721753]
[1746721893197,14.93862838,2045.6,2045.2,4.88948494]
[1746721893407,4.88881637,2045.5,2045.2,0.04888779]
[1746721893696,10.05,2046.0,2045.2,1.74280197]
[1746721893895,4.88864507,2045.6,2045.1,5.65818209]
[1746721894093,4.88916129,2045.4,2045.1,0.7686]
[1746721894534,4.88912829,2045.4,2045.1,0.7686]
[1746721894740,4.88942195,2045.3,2045.1,0.7686]
[1746721894924,4.88942195,2045.3,2044.9,7.1074]
[1746721895120,4.88942195,2045.3,2044.9,0.7664]
[1746721895302,4.88913718,2045.4,2044.9,5.65658405]
[1746721895698,4.33703388,2045.5,2044.6,8.7626]
[1746721896018,4.8903387,2044.9,2044.6,8.0]
[1746721896222,4.89006357,2045.0,2044.5,4.89103686]
[1746721896425,4.89024792,2044.9,2044.5,4.89103686]
[1746721896629,5.67792619,2045.1,2044.7,4.89065511]
[1746721896630,4.88982025,2045.1,2044.7,4.89065511]
[1746721896805,4.88982025,2045.1,2044.6,4.89079393]
[1746721897003,4.88982025,2045.1,2044.6,9.78157856]
[1746721897203,4.88982025,2045.1,2044.6,4.89072912]
[1746721897431,0.55,2045.3,2044.8,5.66338052]
[1746721897432,4.88940903,2045.3,2044.8,5.66338052]
[1746721897633,4.88940903,2045.3,2044.9,4.8901179]
[1746721897935,4.88878024,2045.5,2045.0,4.9388653]
[1746721898297,11.4255,2045.7,2045.1,0.8172]
[1746721898298,10.05,2045.7,2045.1,0.8172]
[1746721898495,4.88868684,2045.6,2045.2,4.88940883]
[1746721899449,4.88882695,2045.5,2045.1,5.70685299]
[1746721899609,4.88888738,2045.5,2045.1,0.8172]
[1746721899808,14.93845971,2045.7,2045.2,4.8893131]
[1746721900147,14.9383694,2045.7,2045.3,4.93798837]
[1746721900437,4.88892408,2045.5,2045.1,5.70674065]
[1746721901013,4.88863068,2045.6,2045.2,4.8894246]
[1746721901427,4.88867974,2045.6,2045.2,4.88949674]
[1746721901626,4.88844169,2045.7,2045.3,4.93804977]
[1746721901834,4.8879303,2045.9,2045.4,4.93790296]
[1746721902039,4.88770261,2046.0,2045.4,0.0488837]
[1746721902040,4.88878024,2045.5,2045.4,0.0488837]
[1746721902219,4.88878024,2045.5,2045.1,5.70690868]
[1746721902659,4.88821889,2045.8,2045.3,4.88903097]
[1746721902823,4.88815911,2045.8,2045.4,4.88891659]
[1746721903020,3.0,2046.0,2045.3,5.4597422]
[1746721903256,15.30546842,2046.1,2045.4,4.88901926]
[1746721903257,10.41810535,2046.1,2045.4,4.88901926]
[1746721903548,10.05,2046.1,2045.5,5.65140819]
[1746721903721,4.88816101,2045.8,2045.5,0.7628]
[1746721903922,4.88797409,2045.9,2045.5,5.65148386]
[1746721904146,4.88699377,2046.3,2045.9,4.88769102]
[1746721904345,10.05,2046.7,2046.1,4.88725235]
[1746721904549,4.88629771,2046.6,2046.2,0.0488684]
[1746721904752,4.88724111,2046.2,2046.0,0.7597]
[1746721905046,8.43615264,2046.6,2045.7,0.7932]
[1746721905248,4.88721916,2046.2,2045.7,12.02031564]
[1746721905453,4.88743002,2046.1,2045.7,12.02031564]
[1746721905612,4.88775609,2046.0,2045.7,7.1322]
[1746721905810,4.88743002,2046.1,2045.7,12.02049534]
[1746721906109,4.88743002,2046.1,2045.7,8.93420127]
[1746721906322,4.88743002,2046.1,2045.7,12.02045675]
[1746721907048,4.88779805,2046.0,2045.7,7.1322]
[1746721907350,5.71689841,2046.3,2045.7,7.1322]
[1746721907639,4.88772918,2046.0,2045.7,0.7932]
[1746721908073,9.77552274,2046.0,2045.7,0.7932]
[1746721908251,4.88772918,2046.0,2045.7,0.7932]
[1746721908447,4.88800994,2045.9,2045.7,0.7932]
[1746721908656,4.88850532,2045.7,2045.4,8.763]
[1746721908860,4.88724059,2046.2,2045.8,4.88795959]
[1746721909030,10.05,2046.5,2045.9,0.763]
[1746721909227,4.88710876,2046.2,2045.9,0.763]
[1746721909438,10.41204694,2046.8,2046.0,0.04886974]
[1746721909642,4.88640211,2046.5,2046.1,4.88712041]
[1746721910164,4.88609373,2046.7,2046.3,0.7752]
[1746721910366,4.88606904,2046.7,2046.3,5.66206755]
[1746721910574,4.88591391,2046.7,2046.3,0.7752]
[1746721911150,4.8865166,2046.5,2046.3,0.7752]
[1746721911332,3.0,2046.7,2046.0,0.7661]
[1746721911538,4.88706373,2046.3,2046.0,0.7661]
[1746721911871,0.8124,2046.6,2045.8,8.0]
[1746721912018,4.88777899,2046.0,2045.8,8.0]
[1746721912226,4.88806334,2045.8,2045.7,0.8139]
[1746721912423,4.88782442,2045.9,2045.7,0.8139]
[1746721912659,4.88806334,2045.8,2045.5,0.7581]
[1746721912958,4.88854125,2045.6,2045.5,0.7581]
[1746721913336,4.88843163,2045.7,2045.3,4.88921717]
[1746721913539,4.88878024,2045.5,2045.4,1.12272172]
[1746721913839,10.05,2045.9,2045.2,6.338]
[1746721914040,4.88892287,2045.5,2045.2,6.338]
[1746721914669,4.88902522,2045.4,2045.1,0.7581]
[1746721914891,4.88937301,2045.3,2045.1,0.7581]
[1746721915334,4.88949735,2045.2,2045.1,0.7581]
[1746721915952,4.88949735,2045.2,2045.0,6.339]
[1746721916764,4.88976226,2045.1,2044.9,0.8129]
[1746721916979,0.8301,2045.6,2044.9,1.38324388]
[1746721917190,4.88921097,2045.4,2044.9,6.27330286]
[1746721917683,4.88963414,2045.2,2044.9,1.38324388]
[1746721917870,4.88938142,2045.3,2044.9,1.38324388]
[1746721918071,4.88961989,2045.2,2044.9,1.38324388]
[1746721918387,4.88977711,2045.1,2044.9,1.38324388]
[1746721918590,4.89038489,2044.9,2044.6,8.0]
[1746721918883,4.89016751,2045.0,2044.6,12.89084481]
[1746721919295,4.89022385,2044.9,2044.5,5.68363848]
[1746721919588,14.93962682,2045.2,2044.7,4.89067949]
[1746721919753,4.89019048,2045.0,2044.5,5.68360055]
[1746721919961,4.89019048,2045.0,2044.6,7.3791679]
[1746721920288,4.89052817,2044.8,2044.6,2.48829308]
[1746721920447,4.89056722,2044.8,2044.5,8.7926]
[1746721921382,4.89056722,2044.8,2044.5,0.7926]
[1746721921692,10.05,2045.2,2045.0,4.88983909]
[1746721921693,10.41480654,2045.2,2045.0,4.88983909]
[1746721921892,10.41480654,2045.2,2044.7,0.7578]
[1746721922057,15.30442534,2045.2,2044.8,4.89042698]
[1746721922258,4.88938839,2045.3,2044.8,1.05390387]
[1746721922453,4.88938839,2045.3,2044.6,12.89081167]
[1746721922454,0.8026,2045.2,2044.6,8.0]
[1746721922654,9.78132992,2044.8,2044.6,8.0]
[1746721923050,4.89069301,2044.7,2044.6,8.0]
[1746721923398,4.89164995,2044.3,2044.2,7.0668]
[1746721923545,10.8526,2044.7,2044.0,8.0]
[1746721923546,4.89212439,2044.2,2044.0,8.0]
[1746721923751,4.89212856,2044.1,2044.0,8.0]
[1746721923990,4.89176708,2044.3,2044.0,8.0]
[1746721924150,4.89129107,2044.5,2044.1,0.04891985]
[1746721924366,4.89117143,2044.5,2044.0,1.36991937]
[1746721924708,4.89117143,2044.5,2043.8,5.65063871]
[1746721924999,4.89165387,2044.3,2043.8,5.69947639]
[1746721925302,4.89236217,2044.1,2043.8,0.7578]
[1746721925511,4.89248739,2044.0,2043.7,14.309]
[1746721925796,4.89284665,2043.8,2043.7,14.309]
[1746721925998,4.89284665,2043.8,2043.7,8.0]
[1746721926197,4.89213837,2044.1,2043.3,8.7579]
[1746721926396,4.89260727,2043.9,2043.3,8.7579]
[1746721926560,4.89365907,2043.5,2043.3,8.7579]
[1746721926761,4.89380444,2043.4,2043.3,8.0]
[1746721927186,4.89370827,2043.5,2043.3,8.0]
[1746721927373,4.89370827,2043.5,2043.0,17.09568017]
[1746721927567,4.89384335,2043.4,2043.0,15.80136802]
[1746721927766,4.89384335,2043.4,2043.0,20.69611014]
[1746721927966,4.89346586,2043.6,2043.0,5.06325943]
[1746721927967,4.89452302,2043.1,2043.0,5.06325943]
[1746721928500,7.89452302,2043.1,2043.0,5.06325943]
[1746721928661,4.89483412,2043.0,2042.4,8.7787]
[1746721928869,4.8951386,2042.9,2042.4,8.7787]
[1746721929199,4.89395709,2043.4,2042.9,4.89480105]
[1746721929402,4.89350439,2043.6,2043.1,4.89437075]
[1746721929603,0.36510091,2043.9,2043.2,4.89418984]
[1746721929897,4.89260727,2043.9,2043.0,0.7787]
[1746721930097,4.89366378,2043.5,2043.0,0.7787]
[1746721930302,4.89400218,2043.4,2043.0,0.7787]
[1746721930502,4.8940461,2043.3,2043.0,1.83556796]
[1746721930697,4.89394279,2043.4,2043.0,0.7787]
[1746721930992,4.89298618,2043.8,2043.3,4.89391079]
[1746721931303,4.89262201,2043.9,2043.5,0.7979]
[1746721931462,4.89225217,2044.1,2043.6,4.8933143]
[1746721931662,4.89150113,2044.4,2043.9,4.89243801]
[1746721931883,4.89150113,2044.4,2043.7,5.462097]
[1746721931884,4.89166296,2044.3,2043.7,5.462097]
[1746721932083,4.89166296,2044.3,2043.8,4.8926841]
[1746721932284,4.89154709,2044.4,2043.8,4.89263701]
[1746721932501,4.89154573,2044.4,2043.9,4.89243365]
[1746721932703,4.89154573,2044.4,2044.0,4.89227096]
[1746721933001,0.829,2044.5,2043.9,0.62139551]
[1746721933203,4.89152439,2044.4,2043.9,5.51384047]
[1746721933514,4.89168295,2044.3,2043.9,0.62139551]
[1746721933802,0.55,2044.4,2043.8,0.7524]
[1746721934211,4.89226946,2044.1,2043.8,0.7524]
[1746721934500,4.89226946,2044.1,2043.5,4.89346402]
[1746721934501,4.89259439,2044.0,2043.6,0.7942]
[1746721934704,4.89269459,2043.9,2043.6,0.7942]
[1746721934903,4.89269459,2043.9,2043.4,12.0008994]
[1746721934904,4.89292519,2043.8,2043.4,12.0008994]
[1746721935109,10.05,2044.2,2043.5,0.74555621]
[1746721935316,4.8921382,2044.1,2043.8,0.7942]
[1746721935640,4.89242767,2044.0,2043.8,0.7942]
[1746721935905,4.89242767,2044.0,2043.5,5.59009262]
[1746721936072,4.89242767,2044.0,2043.6,0.758]
[1746721936268,10.05,2044.2,2043.6,0.758]
[1746721936495,0.781,2044.0,2043.4,8.0]
[1746721936701,4.89258435,2044.0,2043.6,4.89323595]
[1746721937510,4.89258435,2044.0,2043.7,0.8153]
[1746721937716,0.55,2044.1,2043.7,0.8153]
[1746721937881,0.55,2044.1,2043.4,0.8153]
[1746721938214,4.89300777,2043.8,2043.4,0.8153]
[1746721938408,10.05,2044.2,2043.4,2.81751545]
[1746721938583,4.89334885,2043.6,2043.4,0.8153]
[1746721938770,4.89334885,2043.6,2043.2,15.1131]
[1746721938968,4.8939623,2043.4,2043.2,8.8001]
[1746721939204,4.8948029,2043.0,2042.8,0.8068]
[1746721939432,4.8948029,2043.0,2042.5,16.63551427]
[1746721939629,4.89452302,2043.1,2042.5,12.55499987]
[1746721939917,4.8950022,2042.9,2042.5,12.55499987]
[1746721940328,4.8950022,2042.9,2042.5,4.55499987]
[1746721940532,9.79041043,2042.9,2042.5,0.8153]
[1746721940844,4.89582574,2042.6,2042.3,19.0002987]
[1746721941007,0.7673,2042.8,2042.3,19.0002987]
[1746721941212,0.7673,2042.8,2042.3,11.0002987]
[1746721941395,4.89541661,2042.8,2042.3,15.89662426]
[1746721941596,4.89561592,2042.7,2042.3,15.89672495]
[1746721941799,10.05,2042.9,2042.6,4.89560607]
[1746721942333,14.94507983,2042.9,2042.4,4.89608363]
[1746721942539,14.94507983,2042.9,2042.5,4.89594849]
[1746721942714,0.7597,2042.8,2042.3,19.0002987]
[1746721943135,5.65498335,2042.8,2042.3,19.0002987]
[1746721943306,4.89617731,2042.5,2042.3,11.0002987]
[1746721943504,4.89620054,2042.4,2042.3,11.0002987]
[1746721944708,4.89608747,2042.5,2042.3,11.0002987]
[1746721946047,4.89620054,2042.4,2042.3,11.0002987]
[1746721947708,4.89576832,2042.6,2042.3,11.0002987]
[1746721948044,4.8959337,2042.6,2042.3,11.0002987]
[1746721948202,4.89594521,2042.6,2042.3,11.0002987]
[1746721948411,4.89620054,2042.4,2042.3,11.0002987]
[1746721949745,4.89604507,2042.5,2042.3,11.0002987]
[1746721950040,6.25020054,2042.4,2042.3,11.0002987]
[1746721950240,4.89620054,2042.4,2042.3,11.0002987]
[1746721950442,4.89578807,2042.6,2042.3,11.0002987]
[1746721950669,4.89578807,2042.6,2042.3,12.10032857]
[1746721950851,4.89596524,2042.5,2042.3,11.0002987]
[1746721951211,4.89603456,2042.5,2042.3,11.0002987]
[1746721951411,4.89562865,2042.7,2042.3,11.0002987]
[1746721951611,1.3287,2042.9,2042.3,11.8182987]
[1746721951811,4.89582191,2042.6,2042.3,11.0002987]
[1746721952049,4.89612978,2042.5,2042.3,11.0002987]
[1746721952417,4.89620054,2042.4,2042.3,11.0002987]
[1746721953947,0.7787,2042.9,2042.3,11.0002987]
[1746721954255,4.8956252,2042.7,2042.3,15.89665161]
[1746721954465,4.89618535,2042.5,2042.3,11.0002987]
[1746721954673,4.89598135,2042.5,2042.3,11.0002987]
[1746721955034,4.89620054,2042.4,2042.3,11.0002987]
[1746721955668,4.89548147,2042.7,2042.3,12.10032857]
[1746721955968,4.89572706,2042.6,2042.3,12.10032857]
[1746721956167,4.89524182,2042.8,2042.3,11.0002987]
[1746721956466,0.7787,2042.9,2042.3,11.0002987]
[1746721956467,4.89620054,2042.4,2042.3,11.0002987]
[1746721956969,4.89552101,2042.7,2042.3,11.0002987]
[1746721957265,4.89543651,2042.8,2042.4,4.94515041]
[1746721957463,4.89551776,2042.7,2042.4,0.04895754]
[1746721957765,4.89551776,2042.7,2042.4,1.48351924]
[1746721957973,4.89512481,2042.9,2042.4,6.37967559]
[1746721958263,14.94487967,2043.0,2042.4,1.53247475]
[1746721958469,4.89463796,2043.1,2042.7,5.66854003]
[1746721958763,15.73483257,2043.4,2042.8,4.89524182]
[1746721958948,4.89371898,2043.5,2043.1,4.89452124]
[1746721959153,4.89387707,2043.4,2043.1,0.0489409]
[1746721959342,4.89387707,2043.4,2042.9,4.89489736]
[1746721959544,4.89387707,2043.4,2042.7,1.82951099]
[1746721959545,4.89441352,2043.2,2042.7,1.82951099]
[1746721959738,4.89501871,2042.9,2042.7,0.7731]
[1746721960357,0.779,2043.2,2042.4,2.28551924]
[1746721960689,0.779,2043.2,2042.5,0.04895459]
[1746721960968,4.89430089,2043.2,2042.7,4.89535711]
[1746721961130,4.89456191,2043.1,2042.6,5.6976325]
[1746721961334,15.69738679,2043.5,2042.4,14.286]
[1746721961335,4.89548147,2042.7,2042.4,14.286]
[1746721961534,4.89548147,2042.7,2042.4,15.088]
[1746721961982,4.89548147,2042.7,2042.4,16.04453709]
[1746721962476,4.89582758,2042.6,2042.4,7.088]
[1746721963041,4.89563916,2042.7,2042.4,7.088]
[1746721964547,4.89596083,2042.5,2042.4,7.088]
[1746721964748,4.89573825,2042.6,2042.4,7.088]
[1746721964970,4.8955958,2042.7,2042.4,7.088]
[1746721965186,4.89582803,2042.6,2042.4,0.802]
[1746721965363,4.89596083,2042.5,2042.3,11.0002987]
[1746721965549,4.89580157,2042.6,2042.3,11.0002987]
[1746721966086,4.8955723,2042.7,2042.4,0.04895827]
[1746721966249,4.89573472,2042.6,2042.3,11.0002987]
[1746721966451,0.7538,2043.0,2042.3,11.0002987]
[1746721966655,4.89555379,2042.7,2042.5,0.7868]
[1746721966869,10.05,2043.2,2042.5,0.7868]
[1746721967081,4.89548258,2042.7,2042.5,0.7868]
[1746721967600,4.89591942,2042.6,2042.3,11.0002987]
[1746721967886,4.89596991,2042.5,2042.3,11.0002987]
[1746721969196,4.89524675,2042.8,2042.3,11.0002987]
[1746721969348,4.89604611,2042.5,2042.3,11.0002987]
[1746721969963,4.89584457,2042.6,2042.3,11.0002987]
[1746721970297,4.89620054,2042.4,2042.3,11.0002987]
[1746721970803,9.20770054,2042.4,2042.3,11.0002987]
[1746721971219,0.7615,2042.3,2041.9,8.0]
[1746721971508,9.20889948,2041.9,2041.8,0.4468481]
[1746721971666,5.65889948,2041.9,2041.8,0.4468481]
[1746721971867,4.89739948,2041.9,2041.8,0.4468481]
[1746721972305,9.59187267,2041.9,2041.8,0.4468481]
[1746721972473,13.41867267,2041.9,2041.8,0.4468481]
[1746721973178,4.89907897,2041.2,2041.1,10.97107438]
[1746721973578,5.44907897,2041.2,2041.1,10.97107438]
[1746721973885,25.60827897,2041.2,2041.1,10.97107438]
[1746721974884,22.60827897,2041.2,2041.1,10.97107438]
[1746721975096,15.77227897,2041.2,2041.1,10.97107438]
[1746721975380,16.32227897,2041.2,2041.1,10.97107438]
[1746721975599,19.32227897,2041.2,2041.1,10.97107438]
[1746721975799,23.68374361,2041.2,2041.1,10.97107438]
[1746721976766,29.97174361,2041.2,2041.1,10.97107438]
[1746721977012,19.32227897,2041.2,2041.1,10.97107438]
[1746721977419,23.68374361,2041.2,2041.1,10.97107438]
[1746721977614,18.77227897,2041.2,2041.1,10.97107438]
[1746721977912,19.32227897,2041.2,2041.1,10.97107438]
[1746721979202,25.58127897,2041.2,2041.1,10.97107438]
[1746721980114,19.32227897,2041.2,2041.1,10.97107438]
[1746721980318,18.77227897,2041.2,2041.1,10.97107438]
[1746721980524,4.89891376,2041.3,2041.1,12.06818182]
[1746721980525,4.89897319,2041.3,2041.1,12.06818182]
[1746721980818,4.89907897,2041.2,2041.1,12.06818182]
[1746721981184,4.89907897,2041.2,2041.1,10.97107438]
[1746721981386,16.25287897,2041.2,2041.1,10.97107438]
[1746721981899,19.25287897,2041.2,2041.1,10.97107438]
[1746721982605,16.25287897,2041.2,2041.1,10.97107438]
[1746721983184,19.25287897,2041.2,2041.1,10.97107438]
[1746721984597,4.90075961,2040.5,2039.9,23.2119382]
[1746721984827,4.90115124,2040.4,2040.0,2.36587863]
[1746721985028,4.90126541,2040.3,2040.0,2.36587863]
[1746721985219,5.45196078,2040.0,2039.9,11.23278237]
[1746721985527,9.81342542,2040.0,2039.9,11.23278237]
[1746721985748,4.9018668,2040.1,2039.9,11.23278237]
[1746721985945,5.45196078,2040.0,2039.9,11.23278237]
[1746721986227,4.9018668,2040.1,2039.9,11.23278237]
[1746721986228,4.90191066,2040.1,2039.9,11.23278237]
[1746721986398,4.90196078,2040.0,2039.9,11.23278237]
[1746721986737,5.26718756,2040.0,2039.9,11.23278237]
[1746721987104,4.90131426,2040.3,2039.9,11.23278237]
[1746721987305,3.0,2040.5,2039.9,13.68247711]
[1746721987505,4.90188734,2040.1,2039.9,12.02428237]
[1746721987711,4.90090887,2040.5,2039.9,12.02428237]
[1746721987907,4.90142475,2040.3,2039.9,12.02428237]
[1746721988206,4.90051945,2040.6,2039.9,11.23278237]
[1746721988412,4.90196078,2040.0,2039.9,11.23278237]
[1746721988616,5.45196078,2040.0,2039.9,11.23278237]
[1746721989330,4.90196078,2040.0,2039.9,11.23278237]
[1746721989550,4.90132072,2040.3,2039.9,11.23278237]
[1746721989551,4.90146088,2040.3,2039.9,11.23278237]
[1746721989736,5.71897326,2040.5,2039.9,17.30274247]
[1746721990038,4.9011861,2040.4,2039.9,12.40074542]
[1746721990334,4.90112714,2040.4,2039.9,12.40074542]
[1746721990535,9.26251477,2040.4,2039.9,11.23278237]
[1746721990859,5.45196078,2040.0,2039.9,11.23278237]
[1746721991558,8.45196078,2040.0,2039.9,11.23278237]
[1746721991938,9.22216078,2040.0,2039.9,11.23278237]
[1746721992155,19.27216078,2040.0,2039.9,11.23278237]
[1746721992525,19.27216078,2040.0,2039.9,9.63968822]
[1746721993165,19.27216078,2040.0,2039.9,1.92953594]
[1746721993474,9.22408387,2039.2,2039.1,0.005]
[1746721993639,5.45388387,2039.2,2039.1,0.005]
[1746721994340,8.45388387,2039.2,2039.1,0.005]
[1746721994754,5.44888387,2039.2,2039.1,0.005]
[1746721995073,4.90388387,2039.2,2039.1,0.005]
[1746721995370,5.27193055,2039.2,2039.1,0.005]
[1746721995530,5.82193055,2039.2,2039.1,0.005]
[1746721995950,9.59933055,2039.2,2039.1,0.005]
[1746721996482,4.90313494,2039.6,2039.1,0.005]
[1746721996483,0.7774,2039.8,2039.1,0.005]
[1746721996652,5.67986692,2039.8,2039.2,0.7916]
[1746721996848,4.90349863,2039.4,2039.2,0.7916]
[1746721997047,5.67986692,2039.8,2039.3,4.90363374]
[1746721997048,4.90278781,2039.7,2039.3,4.90363374]
[1746721997284,5.27633177,2039.8,2039.4,4.90338771]
[1746721997486,4.90182087,2040.1,2039.7,0.7774]
[1746721997648,4.90199584,2040.0,2039.7,0.7774]
[1746721997849,4.90211867,2040.0,2039.7,0.7774]
[1746721998070,4.90244141,2039.8,2039.7,0.7774]
[1746721998395,4.90213805,2040.0,2039.7,0.7774]
[1746721998551,4.90126449,2040.3,2039.7,0.7774]
[1746721998753,4.90235967,2039.9,2039.7,0.7774]
[1746721998990,4.90208741,2040.0,2039.7,1.34544362]
[1746721999497,4.90230008,2039.9,2039.7,0.7774]
[1746721999699,4.90220108,2039.9,2039.7,0.7774]
[1746721999902,5.27470596,2040.0,2039.7,0.7774]
[1746722000199,4.90244141,2039.8,2039.7,0.7774]
[1746722000500,4.90345601,2039.4,2039.1,0.005]
[1746722000686,4.90326456,2039.5,2039.1,0.005]
[1746722001065,4.9035137,2039.4,2039.1,0.005]
[1746722001385,10.05,2039.8,2039.1,1.06389576]
[1746722001589,0.55,2040.0,2039.4,0.753]
[1746722001899,4.9027827,2039.7,2039.4,0.753]
[1746722002112,4.90388387,2039.2,2039.1,1.86829576]
[1746722002277,4.90388387,2039.2,2039.1,0.8094]
[1746722002601,4.90348162,2039.4,2039.1,0.8094]
[1746722002911,4.90351426,2039.4,2039.1,0.8094]
[1746722003107,0.55,2039.7,2039.1,0.8094]
[1746722003267,4.90373889,2039.3,2039.1,0.8094]
[1746722003461,0.37663706,2039.3,2039.1,0.8094]
[1746722003777,5.45388387,2039.2,2039.1,0.005]
[1746722004664,4.90388387,2039.2,2039.1,0.005]
[1746722004864,10.05,2039.4,2039.2,0.7925]
[1746722005114,4.90210225,2040.0,2039.1,0.005]
[1746722005403,4.90237996,2039.9,2039.5,0.7507]
[1746722005613,4.90161608,2040.2,2039.6,0.56540033]
[1746722005776,10.05,2040.6,2040.3,0.7945]
[1746722005983,0.37534948,2041.0,2040.4,4.9009998]
[1746722006169,4.89835904,2041.5,2040.5,0.7945]
[1746722006474,0.25577134,2041.6,2040.5,0.7945]
[1746722006475,4.89883897,2041.3,2040.5,0.7945]
[1746722006880,0.37365722,2041.4,2040.6,0.04900384]
[1746722007115,0.37365722,2041.4,2040.5,0.7945]
[1746722007116,4.89811912,2041.6,2040.5,0.8304]
[1746722007269,5.66972201,2041.7,2040.6,5.73078988]
[1746722007600,4.89870284,2041.4,2040.7,6.79379302]
[1746722007800,4.89870284,2041.4,2040.7,1.89355375]
[1746722007801,4.89891974,2041.3,2040.7,1.89355375]
[1746722008099,3.17780709,2041.8,2040.7,1.89355375]
[1746722008266,4.89894159,2041.3,2040.7,1.89355375]
[1746722008469,4.89894159,2041.3,2040.8,0.67940432]
[1746722008667,4.89832333,2041.6,2041.0,0.7787]
[1746722008896,4.89882805,2041.4,2041.0,0.7787]
[1746722009098,3.7791,2041.7,2041.0,0.7787]
[1746722009308,4.89873055,2041.4,2041.0,0.7787]
[1746722009507,4.89810335,2041.7,2041.0,0.7787]
[1746722009683,4.89810335,2041.7,2041.2,0.7787]
[1746722009883,4.89823491,2041.6,2041.2,0.7787]
[1746722010082,4.89837867,2041.5,2041.2,0.7787]
[1746722010271,4.89801075,2041.7,2041.2,0.7787]
[1746722010673,5.67562746,2042.3,2041.3,0.04897889]
[1746722010674,4.89644028,2042.3,2041.3,0.04897889]
[1746722010894,4.89764156,2041.8,2041.4,0.8004]
[1746722011222,5.25615389,2042.2,2041.4,0.8004]
[1746722011372,4.89835904,2041.5,2041.4,0.8004]
[1746722011574,4.89931899,2041.1,2041.0,8.0]
[1746722011871,4.89871638,2041.4,2041.0,8.0]
[1746722011872,4.89884853,2041.3,2041.0,8.0]
[1746722012103,4.89884853,2041.3,2041.2,0.8004]
[1746722012786,4.8985303,2041.5,2041.2,0.8004]
[1746722012984,4.89883897,2041.3,2041.2,0.8004]
[1746722013173,4.898742,2041.4,2041.2,0.8004]
[1746722013369,4.89883897,2041.3,2041.2,0.8004]
[1746722014306,4.8986889,2041.4,2041.2,0.8004]
[1746722014498,4.89847805,2041.5,2041.2,0.8004]
[1746722014733,4.89775676,2041.8,2041.4,0.8254]
[1746722014734,4.89778679,2041.8,2041.4,0.8254]
[1746722014929,10.05,2042.2,2041.4,0.8254]
[1746722014930,4.89835904,2041.5,2041.4,0.8254]
[1746722015128,4.89825704,2041.6,2041.4,0.8254]
[1746722015341,5.44691983,2042.1,2041.4,0.8254]
[1746722015644,4.89835904,2041.5,2041.4,0.8254]
[1746722015947,4.89782659,2041.8,2041.4,0.8254]
[1746722016150,9.79570302,2041.8,2041.4,0.8254]
[1746722016318,4.89799311,2041.7,2041.4,8.8254]
[1746722016637,4.89753368,2041.9,2041.4,25.74294681]
[1746722016842,6.238,2042.5,2041.4,25.74294681]
[1746722016843,4.89623375,2042.4,2041.5,0.83107319]
[1746722017045,5.15047957,2043.0,2041.9,0.7821]
[1746722017046,5.64608059,2042.9,2041.9,0.7821]
[1746722017206,4.89583634,2042.6,2042.1,4.89676985]
[1746722017410,4.89542588,2042.8,2042.3,4.89634245]
[1746722017608,14.94414381,2043.3,2042.6,0.7736]
[1746722017908,4.89467131,2043.1,2042.7,0.04894817]
[1746722018127,4.89522087,2042.9,2042.6,0.7736]
[1746722018347,4.89442163,2043.2,2042.6,8.7736]
[1746722018619,39.6170627,2043.8,2042.6,8.7736]
[1746722018620,10.05,2043.8,2043.1,0.8244]
[1746722018820,3.96320709,2044.1,2043.2,6.237]
[1746722019056,4.8923679,2044.0,2043.2,6.237]
[1746722019256,4.8923679,2044.0,2043.1,7.0614]
[1746722019553,4.89321275,2043.7,2043.1,11.95580878]
[1746722019708,4.89303187,2043.8,2043.2,1.68505411]
[1746722019909,3.17780709,2044.1,2043.5,4.89356138]
[1746722019910,4.89255434,2044.0,2043.5,4.89356138]
[1746722020146,4.89255434,2044.0,2043.4,0.7717]
[1746722020147,4.89297975,2043.8,2043.6,6.234]
[1746722020350,4.89308606,2043.7,2043.6,6.234]
[1746722020525,4.89303641,2043.8,2043.6,6.234]
[1746722020720,4.89343062,2043.6,2043.5,6.234]
[1746722020929,4.89343062,2043.6,2043.4,7.0057]
[1746722021114,3.17780709,2044.1,2043.4,7.0057]
[1746722021317,4.8932119,2043.7,2043.4,7.0057]
[1746722021545,4.89330156,2043.7,2043.4,7.0057]
[1746722021743,4.89238709,2044.0,2043.5,4.94227292]
[1746722022014,4.89209167,2044.2,2043.6,5.67287215]
[1746722022217,4.89284665,2043.8,2043.7,8.0]
[1746722022414,4.89284665,2043.8,2043.7,14.232]
[1746722022617,4.89284665,2043.8,2043.7,8.0]
[1746722022934,4.89284021,2043.9,2043.7,8.0]
[1746722022935,4.89271792,2043.9,2043.7,14.232]
[1746722023111,4.89251739,2044.0,2043.7,14.232]
[1746722023454,4.89284665,2043.8,2043.7,6.232]
[1746722024547,4.8921349,2044.1,2043.3,4.89389668]
[1746722024548,4.8939729,2043.4,2043.3,0.8281]
[1746722024852,4.89346321,2043.6,2043.3,0.8281]
[1746722025019,4.89380444,2043.4,2043.3,0.8281]
[1746722025527,4.89380444,2043.4,2043.2,6.232]
[1746722025528,4.89428347,2043.2,2043.1,23.878]
[1746722026358,4.89428347,2043.2,2042.6,4.89562164]
[1746722026359,4.89483649,2043.0,2042.5,8.0]
[1746722026563,4.8955953,2042.7,2042.5,8.0]
[1746722026747,4.89534204,2042.8,2042.5,8.0]
[1746722027043,4.89565033,2042.7,2042.5,8.0]
[1746722027247,4.89572113,2042.6,2042.4,0.8281]
[1746722027447,4.89592902,2042.6,2042.4,0.8281]
[1746722027649,4.89541976,2042.8,2042.4,0.8281]
[1746722027828,4.89551855,2042.7,2042.4,0.8281]
[1746722028024,4.89542188,2042.8,2042.4,5.7242962]
[1746722028225,4.89581736,2042.6,2042.4,0.8281]
[1746722028424,4.89596083,2042.5,2042.4,0.8281]
[1746722029161,4.89620054,2042.4,2042.3,23.868]
[1746722029337,0.55,2042.5,2041.8,0.7956]
[1746722029528,4.89710309,2042.1,2041.8,0.7956]
[1746722029732,4.89653972,2042.3,2041.9,0.04897003]
[1746722029932,4.8969148,2042.2,2041.8,2.78805523]
[1746722030459,4.8969148,2042.2,2041.8,7.68568733]
[1746722030763,4.89617849,2042.5,2042.0,4.89703227]
[1746722030965,4.89598855,2042.5,2042.1,4.94577358]
[1746722031170,4.89622107,2042.4,2042.1,6.231]